Cogmind - Beta 16 @@@ ROGUE MODE // 2025.12.12 @ 22:13:18 Player: Lauriboy Result: Self-destructed Performance ------------- Evolutions (2) 1000 Regions Visited (3) 600 Robots Destroyed (26) 130 Value Destroyed (623) 623 Prototype IDs (6) 120 Alien Tech Used (0) 0 Bonus (0) 0 TOTAL SCORE: 2473 Bonus ------- None Cogmind --------- Core Integrity 446/550 Matter 281/300 Energy 274/275 System Corruption 0% Temperature Cool (3) Movement Flying (30) Location -8/Materials Parts ------- > --- POWER (2) -------- Deuterium Engine > --- PROPULSION (4) --- Flight Unit VTOL Module VTOL Module > --- UTILITY (2) ------ Heat Sink Seismic Detector > --- WEAPON (3) ------- Spread Laser > --- INVENTORY (5) ---- Heavy Ion Engine Medium Storage Unit High-capacity Battery (250) Improved Signal Interpreter Peak State ------------ > --- POWER ------------ Heavy Ion Engine Deuterium Engine > --- PROPULSION ------- VTOL Module VTOL Module VTOL Module VTOL Module > --- UTILITY ---------- Heat Sink Large Storage Unit > --- WEAPON ----------- Beam Rifle Beam Rifle Advanced Beam Cannon > --- INVENTORY -------- Heavy Ion Engine Advanced Treads Medium Storage Unit Huge Storage Unit High-capacity Battery High-capacity Battery Seismic Detector Reaction Control System EM Pulse Gun Improved EM Shotgun Improved Medium Laser EM Pulse Cannon Heavy Particle Cannon Heavy Assault Rifle Grenade Launcher [Rating: 26] Favorites ----------- Power Heavy Ion Engine Engine Heavy Ion Engine Power Core Light Nuclear Core Propulsion Aluminum Leg Leg Aluminum Leg Flight Unit VTOL Module Utility Medium Storage Unit Device Heat Sink Storage Medium Storage Unit Processor Visual Processing Unit Weapon Beam Rifle Energy Gun Beam Rifle Energy Cannon Advanced Beam Cannon Ballistic Gun Light Assault Rifle Build | -11 -10 -9 -8 ------- Run | Yrd Mat Mat Mat Slots Evolved 4 | . . 2 2 Power 1 | . . . 1 Propulsion 2 | . . 2 . Utility . | . . . . Weapon 1 | . . . 1 Parts Attached 35 | 4 6 16 9 Power 6 | 1 . 4 1 Engine 5 | 1 . 3 1 Core 1 | . . 1 . Reactor . | . . . . Propulsion 13 | 2 2 3 6 Treads . | . . . . Leg 7 | 2 2 3 . Wheel . | . . . . Hover . | . . . . Flight 6 | . . . 6 Utility 7 | 1 2 3 1 Device 3 | . 1 1 1 Storage 3 | 1 1 1 . Processor 1 | . . 1 . Hackware . | . . . . Protection . | . . . . Artifact . | . . . . Weapon 9 | . 2 6 1 Energy Gun 5 | . 1 3 1 Energy Cannon 2 | . . 2 . Ballistic Gun 2 | . 1 1 . Ballistic Cannon . | . . . . Launcher . | . . . . Special Weapon . | . . . . Impact Weapon . | . . . . Slashing Weapon . | . . . . Piercing Weapon . | . . . . Special Melee Weapon . | . . . . Unidentified Prototypes 2 | . . 2 . Parts Lost 8 | . . 4 4 Power 1 | . . 1 . Propulsion 5 | . . 2 3 Utility . | . . . . Weapon 2 | . . 1 1 Highest Loss Streak 4 | . . 2 4 To Critical Strikes 1 | . . 1 . Average Backups 9 | 3 7 9 10 Power 1 | 1 1 1 1 Propulsion . | 1 1 . . Utility 3 | . 2 3 4 Weapon 3 | 1 1 3 4 Tool/Special . | . . . . Unused Backups 17 | . 2 2 13 Power 2 | . 1 . 1 Propulsion 3 | . 1 1 1 Utility 5 | . . . 5 Weapon 7 | . . 1 6 Tool/Special . | . . . . Average Slot Usage (%) 85 | . 96 85 73 Engine 11 | . 14 9 11 Leg 24 | . 28 30 10 Flight 3 | . . . 12 Device 8 | . 11 4 12 Storage 10 | . 14 11 5 Processor 3 | . . 6 . Energy Gun 14 | . 13 13 14 Energy Cannon 3 | . . 3 5 Ballistic Gun 5 | . 14 4 . Peak Build Rating 26 | 4 8 16 26 Average Rating 12 | 3 7 12 16 On Entrance 6 | . 4 8 13 Avg Prop Armor Cover (%) . | . . . . Naked Turns . | . . . . Heaviest Build 48 | 10 19 36 48 Greatest Support 40 | 20 20 40 20 Greatest Overweight (x) 15 | . . 1 15 Average Overweight (x) . | . . . . Largest Inventory Capacity 15 | 8 10 15 15 Average Capacity 10 | 7 8 10 11 Most Carried 15 | 6 8 11 15 Average Carried 9 | 4 7 9 10 Final Capacity 15 | 8 10 15 5 Final Carried 11 | 6 8 11 4 Class Distribution -------------------- 49% | Mutant 23% | Scavenger-Mutant 15% | Scavenger-Gunner 11% | Sprinter Dominant Class ---------------- Mutant | -10/Materials Scavenger-Mutant | -9/Materials Scavenger-Gunner | -8/Materials Resources | -11 -10 -9 -8 ----------- Run | Yrd Mat Mat Mat Matter Collected 680 | 240 67 302 71 Remotely . | . . . . Salvage Created 815 | . 141 603 71 Parts 50 | . 8 34 8 Haulers Intercepted . | . . . . Recyclers Shooed 1 | . . 1 . Parts Field Recycled . | . . . . Retrieved Matter . | . . . . Parts Self-Destructed . | . . . . Prevented . | . . . . Parts Restored . | . . . . Kills | -11 -10 -9 -8 ------- Run | Yrd Mat Mat Mat Combat Hostiles Destroyed 21 | . 2 15 4 Guns 14 | . 2 8 4 Cannons 7 | . . 7 . Classes Destroyed 6 | . 2 4 . Worker 1 | . . 1 . Watcher 4 | . 2 2 . Swarmer 9 | . . 5 4 Grunt 7 | . 2 5 . Brawler 2 | . . 2 . Sentry 3 | . . 3 . Best Kill Streak 5 | . 2 5 4 Combat Bots Only 4 | . 1 4 4 Max Kills in Single Turn 1 | . 1 1 1 Gunslinging . | . . . . Exploded . | . . . . Melee . | . . . . Uniques/NPCs Destroyed . | . . . . Combat | -11 -10 -9 -8 -------- Run | Yrd Mat Mat Mat Hostile Shots Fired 200 | . 24 90 86 Missed 74 | . 5 20 49 Hits 126 | . 19 70 37 Melee 7 | . . 7 . Projectile 119 | . 19 63 37 Critical Strikes 3 | . . 2 1 Damage Taken 1368 | . 237 767 364 Core 242 | . 55 83 104 Absorbed by Shields . | . . . . Regen/Repaired (Parts) 65 | . . 65 . Core Remaining (%) 85 | 100 78 79 . Volleys Fired 91 | . 18 55 18 Largest 3 | . 2 2 3 Hottest 180 | . 70 124 180 Shots Fired 166 | . 36 108 22 Gun 141 | . 36 85 20 Cannon 25 | . . 23 2 Launcher . | . . . . Special . | . . . . Kinetic 44 | . 18 26 . Thermal 122 | . 18 82 22 Explosive . | . . . . Electromagnetic . | . . . . Robot Hit Streak 22 | . 8 22 4 Robot Miss Streak 3 | . 2 3 3 Penetration Max . | . . . . Secondary Targets 1 | . . 1 . Max Gunslinging Chain 1 | . . 1 . Shots Hit Robots 107 | . 26 70 11 Core Hits 38 | . 8 25 5 Critical Kills . | . . . . Critical Parts Destroyed . | . . . . Critical Strikes 6 | . . 5 1 Burn 6 | . . 5 1 Melee Attacks . | . . . . Impact . | . . . . Slashing . | . . . . Piercing . | . . . . Sneak Attacks . | . . . . Combat Hostiles . | . . . . Follow-up Attacks . | . . . . Damage Inflicted 1452 | . 274 1013 165 Guns 1085 | . 274 666 145 Cannons 367 | . . 347 20 Explosions . | . . . . Melee . | . . . . Ramming . | . . . . Kinetic 260 | . 100 160 . Thermal 1192 | . 174 853 165 Explosive . | . . . . Electromagnetic . | . . . . Impact . | . . . . Slashing . | . . . . Piercing . | . . . . Highest Corruption 3 | . . 3 . Average Corruption 3 | . . 3 . Corruption Purged . | . . . . Corruption Blocked . | . . . . Effects 6 | . . 6 . Message Errors 2 | . . 2 . Heat Flow Errors 1 | . . 1 . Energy Discharges 1 | . . 1 . Data Loss (minor) 1 | . . 1 . Alerts 1 | . . 1 . Overload Shots . | . . . . Overflow Damage . | . . . . Projectiles . | . . . . Explosions . | . . . . Melee . | . . . . Knockbacks . | . . . . Impact . | . . . . Kinetic . | . . . . Secondary . | . . . . Self-Inflicted Damage . | . . . . Shots . | . . . . Rammed . | . . . . Targets Rammed . | . . . . Kicked . | . . . . Crushed . | . . . . Highest Temperature 463 | . 182 463 150 Average Temperature 126 | . 89 140 71 Received Heat Transfer 372 | . 141 159 72 Effects 4 | . . 4 . Energy Bleed 2 | . . 2 . Matter Decay 1 | . . 1 . Damage (minor) 1 | . . 1 . Siege Activations . | . . . . Martial Activations . | . . . . Shielding Activations . | . . . . Robots Disrupted . | . . . . Combat Hostiles . | . . . . Robots Corrupted . | . . . . Combat Hostiles . | . . . . Parts Fried . | . . . . Impact Corruptions . | . . . . Robots Melted . | . . . . Combat Hostiles . | . . . . Parts Melted 5 | . 1 3 1 Heat Transferred 3293 | . 518 2294 481 Parts Sabotaged . | . . . . Parts Stolen . | . . . . Parts Stripped . | . . . . Power Chain Reactions . | . . . . Alert | -11 -10 -9 -8 ------- Run | Yrd Mat Mat Mat Maximum Alert Level . | . . . . Low Security (%) 100 | 100 100 100 100 Level 1 . | . . . . Level 2 . | . . . . Level 3 . | . . . . Level 4 . | . . . . Level 5 . | . . . . High Security . | . . . . Max Security . | . . . . Peak Influence 175 | . 52 142 175 Initial 52 | . . . 52 Average 23 | . 7 31 27 Influence Increases 805 | . 84 436 285 Destroy 0b10 Robot/C 420 | . 40 300 80 Destroy 0b10 Robot/NC 25 | . 10 15 . Destroy Leader 88 | . 14 64 10 Successful Hack 17 | . 5 12 . Disable Machine 15 | . . 15 . Partial Spotted 90 | . . . 90 Lose Combat Pursuer 150 | . 15 30 105 Influence Decreases 638 | . 84 312 242 Entered New Map 72 | . . . 72 Time Decay 486 | . 84 272 130 Lost Part 80 | . . 40 40 Squads Dispatched 4 | . 2 1 1 Investigation 1 | . 1 . . Extermination . | . . . . Reinforcement 3 | . 1 1 1 Assault . | . . . . Garrison . | . . . . Intercept . | . . . . Searches Triggered . | . . . . Construction Impeded . | . . . . Haulers Reinforced . | . . . . Active Scanning Responses . | . . . . Cargo Convoy Interrupts . | . . . . Stealth | -11 -10 -9 -8 --------- Run | Yrd Mat Mat Mat Distress Signals 4 | . . 2 2 Communications Jammed . | . . . . Distress Signals . | . . . . Times Spotted 57 | . 7 21 29 Peak Tracking Total 15 | . 2 6 15 Tactical Retreats 6 | . 1 2 3 Traps | -11 -10 -9 -8 ------- Run | Yrd Mat Mat Mat Traps Triggered 2 | . 1 1 . Indirectly . | . . . . Trap Hack Attempts . | . . . . Triggered . | . . . . Disarmed . | . . . . Reprogrammed . | . . . . Reused . | . . . . Traps Extracted . | . . . . Installed . | . . . . Triggered . | . . . . Machines | -11 -10 -9 -8 ---------- Run | Yrd Mat Mat Mat Machines Disabled 1 | . . 1 . Max in Single Turn 1 | . . 1 . Machines Repaired . | . . . . Machines Dismantled . | . . . . Machines Sabotaged . | . . . . Overloaded Fab Kills . | . . . . Hacking | -11 -10 -9 -8 --------- Run | Yrd Mat Mat Mat Machines Accessed 8 | . 3 4 1 Terminals 5 | . 2 3 . Fabricators . | . . . . Repair Stations 1 | . . 1 . Recycling Units 1 | . 1 . . Scanalyzers 1 | . . . 1 Garrison Access . | . . . . Total Hacks 21 | . 9 11 1 Successful 11 | . 4 6 1 Failed 10 | . 5 5 . Catastrophic . | . . . . Database Lockouts . | . . . . Manual . | . . . . Terminals 12 | . 4 8 . Fabricators . | . . . . Repair Stations 3 | . . 3 . Recycling Units 5 | . 5 . . Scanalyzers 1 | . . . 1 Garrison Access . | . . . . Terminal Hacks 6 | . 2 4 . Record 1 | . . 1 . Prototype ID Bank 2 | . . 2 . Alert Level 1 | . . 1 . Locate Traps 1 | . 1 . . Zone Layout 1 | . 1 . . Fabricator Hacks . | . . . . Repair Station Hacks 2 | . . 2 . Scan Component 1 | . . 1 . Repair 1 | . . 1 . Recycling Unit Hacks 2 | . 2 . . Report Inventory 1 | . 1 . . Retrieve Components 1 | . 1 . . Scanalyzer 1 | . . . 1 Retrieve Study 1 | . . . 1 Garrison Access Hacks . | . . . . Unauthorized Hacks . | . . . . Terminals . | . . . . Fabricators . | . . . . Repair Stations . | . . . . Recycling Units . | . . . . Scanalyzers . | . . . . Garrison Access . | . . . . Data Cores Recovered . | . . . . Used . | . . . . Hacking Detections 4 | . 2 2 . Full Trace Events 1 | . . 1 . Feedback Events . | . . . . Feedback Blocked . | . . . . Robot Schematics Acquired . | . . . . Robots Built . | . . . . Authchips . | . . . . Time . | . . . . Total Robot Build Rating . | . . . . Part Schematics Acquired . | . . . . Parts Built . | . . . . Authchips . | . . . . Time . | . . . . Total Part Build Rating . | . . . . Part Studies Acquired 1 | . . . 1 Parts Repaired 1 | . . 1 . Time 26 | . . 26 . Parts Recycled . | . . . . Recycled Matter . | . . . . Retrieved Matter . | . . . . Retrieved Components 1 | . 1 . . Parts Scanalyzed . | . . . . Part Schematics Acquired . | . . . . Parts Damaged . | . . . . Bothacking | -11 -10 -9 -8 ------------ Run | Yrd Mat Mat Mat Used RIF Installer . | . . . . Robots Hacked . | . . . . Non-combat . | . . . . Combat . | . . . . Robot Hacks Applied . | . . . . Relay Couplers Released . | . . . . Fabnet Peak Effective % . | . . . . Robots Rewired . | . . . . Allies Hacked . | . . . . Hacks Repelled . | . . . . Allies | -11 -10 -9 -8 -------- Run | Yrd Mat Mat Mat Total Allies . | . . . . Largest Group . | . . . . Highest-Rated Group . | . . . . Highest-Rated Ally . | . . . . Total Orders . | . . . . Ally Attacks . | . . . . Total Damage . | . . . . Kills . | . . . . Allies Corrupted . | . . . . Allies Melted . | . . . . Intel | -11 -10 -9 -8 ------- Run | Yrd Mat Mat Mat Active Infowar (turns) 1110 | . 369 570 171 Optics 544 | . . 544 . Terrain 395 | . 369 26 . Seismic 171 | . . . 171 Robot Analysis Total . | . . . . Derelict Logs Recovered . | . . . . Drone Launches . | . . . . Drone Recoveries . | . . . . Exploration | -11 -10 -9 -8 ------------- Run | Yrd Mat Mat Mat Turns Passed 1900 | 61 459 880 500 Spaces Moved 1317 | 45 301 470 501 Core 10 | 9 . . 1 Treads . | . . . . Legs 933 | 36 301 470 126 Wheels . | . . . . Hover . | . . . . Flight 374 | . . . 374 Fastest Speed 26 | 50 120 120 26 Average Speed 105 | 106 120 122 79 Slowest Speed 915 | 120 120 190 915 Overloaded Moves . | . . . . Propulsion Burnouts . | . . . . Robots Hopped 4 | . . . 4 Potential Cave-ins . | . . . . Cave-ins Triggered . | . . . . Exploration Rate (%) 39 | 4 52 40 61 Regions Visited 3 Branch Regions . Pre-discovered Areas . | . . . . Known Exits Taken . | . . . . Unknown Exits Taken 3 | 1 1 1 . Scrap Searched . | . . . . Spaces Dug . | . . . . Terrain Destroyed . | . . . . Melee . | . . . . Projectile . | . . . . AOE . | . . . . Terrain Rammed . | . . . . Walls Destroyed . | . . . . Machines Disabled . | . . . . Actions | -11 -10 -9 -8 --------- Run | Yrd Mat Mat Mat Total 1674 | 58 369 670 577 Wait 159 | . 32 97 30 Move 1307 | 44 300 469 494 Hop 3 | . . . 3 Pick Up 40 | 10 7 13 10 Fast Attach 12 | . 1 4 7 Attach 17 | 4 2 8 3 Detach 2 | . . 1 1 Swap 17 | . 3 13 1 Drop 26 | . 6 10 10 Fire 91 | . 18 55 18 Melee . | . . . . Ram . | . . . . Kick . | . . . . Crush . | . . . . Escape Stasis . | . . . . Rewire . | . . . . Trap . | . . . . Miscellaneous . | . . . . Route ------- -11/Scrapyard -10/Materials (discovered 2 exits: *Mat x2) -9/Materials -8/Materials History --------- Turn | Location | Event 23 | -11/Scrapyard | Discovered new exit (range 15) 62 | -11/Scrapyard | Entered Materials 316 | -10/Materials | Build established: Mutant 323 | -10/Materials | Discovered new exit (range 5) 449 | -10/Materials | Discovered new exit (range 13) 521 | -10/Materials | Entered another Materials area 521 | -9/Materials | Evolved 2 slots: Propulsion x2 1053 | -9/Materials | Repaired Aluminum Leg 1201 | -9/Materials | Build established: Scavenger-Mutant 1268 | -9/Materials | Discovered new exit (range 4) 1401 | -9/Materials | Entered another Materials area 1401 | -8/Materials | Evolved 2 slots: Power x1, Weapon x1 1895 | -8/Materials | Lost 4 parts (3n1w) 1901 | -8/Materials | Self-destructed Last Messages --------------- O-16 Technician locks terminal. W-25 Informer sends out distress signal. S-10 Pest destroyed. Acquired 14 matter. S-10 Pest suffers critical hit (Burn). Lgt. Ion Engine melted. S-10 Pest destroyed. VTOL Module+ destroyed. S-10 Pest destroyed. Critical hit (Burn: +37). Acquired Flight Unit. Acquired 38 matter. Acquired 19 matter. VTOL Module+ destroyed. Beam Rifle destroyed. S-10 Pest destroyed. K-01 Serf cleans the Nuclear Reactor. Acquired Spread Laser. K-01 Serf cleans the Nuclear Reactor. S-10 Pest destroyed. Map ----- +----------------------------------------------------+ | ??????# [# #????????????? """ # | | ??????# =%# "" ##?###########? """ # | | ??????# =*# "" """ ## """ #? !! ?# | | ####??# # "T """ ## "R" #??!! ] ]?# | | """ ?# # "" """ ## " " """ #?######??# | | """ ?# # "" # """ #?????????# | | """ # #? ?## ! [ """ #?????????#[ ### | | # #?#######??#! #?????????#=*=#?? | | + #??????????# #??????#####/#### | | ! # #??????????#########+########## [ [ | | ####### #???????########### + # = | | ?## ##??????# # # """"" # ! | | # !######## """ # # """"" #! """ | | # # "S """ + + """"" # """ | | " + + """ """ # # # " " """ | | "" ""# ! # "" # # """"" # "R" | | "" Y"# ###### # /# # """"" # """ ! | | "" "?###+######## ########### # """"" ########## | | " ?# + + ## + #??# | | ###??# """ """ ##### """## # #??# T | | ?????# """ """ #???# """## # ] #??# | | ?????# """ """ #???# """## #########??# | | ?????# #???# ## #??????????# | | ?????# #???# ## ##?????????# | | ?????# ! ########+### ###############/# | | ????############## @ a wa | | ????# [ [# T | | ????# " """"" # ############# | | ????# """"""""" + ####### #???????????# | | ????# """ """ # k #?????#######???????????# | | ????# # #???????????????????????+ | | ????############## #???????????????????????# | | ???????? # ###########?????????????##### | | ???????? # # =[! #?????????????????? | | ???????? """ """ # # """][ ==#?????????????????? | | ???????# """ """ + + """]![[=#?????????????????? | | ???????# """ """ # # """!*! ]#?????????????????? | | ???????# # # =[ #?????????????????? | | ???????# # # |= #?????????????????? | | ???????# ! ##### #?????????????????? | | ???????###########???# """T""" #?????????????????? | | ?????????????????????###########?????????????????? | | ?????????????????????????????????????????????????? | | ?????????????????????????????????????????????????? | | ?????????????????????????????????????????????????? | | ?????????????????????????????????????????????????? | | | | | | | | | +----------------------------------------------------+ Best States ------------- Heat Dissipation 41 Energy Generation 23 Energy Capacity 455 Matter Stores 300 Matter Capacity 300 Sight Range 18 Terrain Scan Range 14 Terrain Scan Density 10 Evasion (%) 64 Item Schematics ----------------- None Robot Schematics ------------------ None Fabricated ------------ Nothing Repaired ---------- Aluminum Leg | 27% | -9/Materials Studied --------- VTOL Module | -8/Materials | Hacked Alien Tech Used ----------------- None Achievements -------------- None Challenges ------------ None Game ------ Seed GodVisualSpoofer Manual? 0 Play Time 00:42:10 Cumulative 20.7 hours Start 2025.12.12 @ 21:20:12 End 2025.12.12 @ 22:13:18 Sessions 1 Manual Loads 0 Difficulty Rogue Special Mode None Game No. 22 Rogue 22 Adventurer 0 Explorer 0 Win Type - Total 0 Types 0/0/0/0/0/0/0/0/0/0 Lore% 11 Gallery% 17 Achievement% 16 Wizard Run 0 Options --------- Layout 1 ASCII 0 Keyboard 0 Movement Mouse Keybinds 0 Fullscreen 1 Font 36/Smallcaps Map View 50x35 Zoom Use 0% Tactical HUD 0 Map Filters NONE Filters NONE Steam 1 RUN: 99e50171-0d17-47f0-be1b-b145b0be2510